[Event "Titled Tuesday Blitz November 08 Early 2022"]
[White "Remizov, Yaroslav"]
[Black "Cruz Mendez, Jean Marco"]
[WhiteFideId "34134015"]
[BlackFideId "3526402"]
[WhiteElo "2843"]
[BlackElo "2582"]
[Result "1-0"]
[Round "04"]
[TimeControl "180+1"]
[Date "2022.11.09"]
[WhiteClock "0:00:10"]
[BlackClock "0:00:10"]

1. e4 {[%clk 0:02:09]}  c5 {[%clk 0:02:57]} 2. Nc3 {[%clk 0:02:06]}  Nc6 {[%clk 0:02:57]} 3. Bb5 {[%clk 0:02:06]}  Nd4 {[%clk 0:02:56]} 4. Bc4 {[%clk 0:02:04]}  e6 {[%clk 0:02:55]} 5. Nge2 {[%clk 0:02:04]}  Nc6 {[%clk 0:02:49]} 6. O-O {[%clk 0:02:01]}  a6 {[%clk 0:02:41]} 7. a4 {[%clk 0:01:37]}  Nf6 {[%clk 0:02:40]} 8. d4 {[%clk 0:01:35]}  cxd4 {[%clk 0:02:38]} 9. Nxd4 {[%clk 0:01:36]}  d6 {[%clk 0:02:37]} 10. Bf4 {[%clk 0:01:25]}  e5 {[%clk 0:02:34]} 11. Nxc6 {[%clk 0:01:23]}  bxc6 {[%clk 0:02:35]} 12. Be3 {[%clk 0:01:04]}  Be7 {[%clk 0:02:13]} 13. a5 {[%clk 0:01:03]}  O-O {[%clk 0:02:10]} 14. Qd3 {[%clk 0:01:00]}  Be6 {[%clk 0:02:06]} 15. Bxa6 {[%clk 0:00:56]}  d5 {[%clk 0:01:59]} 16. Bb6 {[%clk 0:00:56]}  Qd7 {[%clk 0:01:57]} 17. exd5 {[%clk 0:00:56]}  cxd5 {[%clk 0:01:58]} 18. Bb5 {[%clk 0:00:55]}  Qb7 {[%clk 0:01:57]} 19. Rfe1 {[%clk 0:00:49]}  d4 {[%clk 0:01:47]} 20. Ne4 {[%clk 0:00:48]}  Bd5 {[%clk 0:01:45]} 21. Nxf6+ {[%clk 0:00:44]}  Bxf6 {[%clk 0:01:46]} 22. f3 {[%clk 0:00:44]}  Rfc8 {[%clk 0:01:40]} 23. c4 {[%clk 0:00:38]}  dxc3 {[%clk 0:01:10]} 24. bxc3 {[%clk 0:00:39]}  Bc6 {[%clk 0:01:10]} 25. Bc4 {[%clk 0:00:30]}  g6 {[%clk 0:01:05]} 26. Rad1 {[%clk 0:00:28]}  Kg7 {[%clk 0:01:03]} 27. h3 {[%clk 0:00:24]}  Rxa5 {[%clk 0:00:59]} 28. Bxa5 {[%clk 0:00:24]}  Qa7+ {[%clk 0:00:59]} 29. Kh2 {[%clk 0:00:23]}  Qxa5 {[%clk 0:01:00]} 30. Bb3 {[%clk 0:00:17]}  e4 {[%clk 0:00:58]} 31. fxe4 {[%clk 0:00:18]}  Be5+ {[%clk 0:00:59]} 32. Kh1 {[%clk 0:00:17]}  Qc5 {[%clk 0:00:47]} 33. Rf1 {[%clk 0:00:17]}  f6 {[%clk 0:00:46]} 34. Bd5 {[%clk 0:00:15]}  Bb5 {[%clk 0:00:43]} 35. c4 {[%clk 0:00:15]}  Bxc4 {[%clk 0:00:33]} 36. Bxc4 {[%clk 0:00:16]}  Qxc4 {[%clk 0:00:34]} 37. Qd7+ {[%clk 0:00:16]}  Kh6 {[%clk 0:00:34]} 38. Qg4 {[%clk 0:00:16]}  Rc7 {[%clk 0:00:30]} 39. h4 {[%clk 0:00:13]}  Qc3 {[%clk 0:00:27]} 40. Rf3 {[%clk 0:00:12]}  Qc2 {[%clk 0:00:26]} 41. Rdf1 {[%clk 0:00:12]}  Rc4 {[%clk 0:00:25]} 42. Re3 {[%clk 0:00:09]}  Qd2 {[%clk 0:00:21]} 43. Re2 {[%clk 0:00:09]}  Qd3 {[%clk 0:00:19]} 44. h5 {[%clk 0:00:10]}  Qg3 {[%clk 0:00:19]} 45. Qxg3 {[%clk 0:00:09]}  Bxg3 {[%clk 0:00:20]} 46. hxg6 {[%clk 0:00:08]}  Kxg6 {[%clk 0:00:21]} 47. Re3 {[%clk 0:00:08]}  Be5 {[%clk 0:00:22]} 48. Kg1 {[%clk 0:00:07]}  Bd4 {[%clk 0:00:21]} 49. Kf2 {[%clk 0:00:05]}  Rc3 {[%clk 0:00:22]} 50. Re1 {[%clk 0:00:06]}  Bxe3+ {[%clk 0:00:21]} 51. Rxe3 {[%clk 0:00:06]}  Rc5 {[%clk 0:00:22]} 52. Rg3+ {[%clk 0:00:05]}  Kf7 {[%clk 0:00:22]} 53. Ra3 {[%clk 0:00:05]}  Re5 {[%clk 0:00:22]} 54. Kf3 {[%clk 0:00:06]}  Kg6 {[%clk 0:00:23]} 55. Ra6 {[%clk 0:00:05]}  h5 {[%clk 0:00:23]} 56. Rb6 {[%clk 0:00:04]}  Kg5 {[%clk 0:00:24]} 57. g3 {[%clk 0:00:05]}  Ra5 {[%clk 0:00:24]} 58. Rd6 {[%clk 0:00:04]}  Ra3+ {[%clk 0:00:24]} 59. Kg2 {[%clk 0:00:05]}  Re3 {[%clk 0:00:25]} 60. Re6 {[%clk 0:00:03]}  Re2+ {[%clk 0:00:22]} 61. Kh3 {[%clk 0:00:03]}  Re3 {[%clk 0:00:20]} 62. Re8 {[%clk 0:00:03]}  Re1 {[%clk 0:00:19]} 63. Rg8+ {[%clk 0:00:04]}  Kh6 {[%clk 0:00:19]} 64. Re8 {[%clk 0:00:04]}  Kg6 {[%clk 0:00:20]} 65. Kg2 {[%clk 0:00:04]}  Kf7 {[%clk 0:00:20]} 66. Rh8 {[%clk 0:00:04]}  Rxe4 {[%clk 0:00:21]} 67. Rxh5 {[%clk 0:00:04]}  Kg6 {[%clk 0:00:21]} 68. Ra5 {[%clk 0:00:05]}  f5 {[%clk 0:00:21]} 69. Kf3 {[%clk 0:00:05]}  Rb4 {[%clk 0:00:21]} 70. Ra8 {[%clk 0:00:05]}  Kg5 {[%clk 0:00:21]} 71. Rg8+ {[%clk 0:00:04]}  Kf6 {[%clk 0:00:21]} 72. Kg2 {[%clk 0:00:05]}  Re4 {[%clk 0:00:19]} 73. Ra8 {[%clk 0:00:06]}  Re6 {[%clk 0:00:20]} 74. Kh3 {[%clk 0:00:06]}  Ke5 {[%clk 0:00:20]} 75. Kh4 {[%clk 0:00:06]}  Rg6 {[%clk 0:00:19]} 76. Ra5+ {[%clk 0:00:07]}  Ke4 {[%clk 0:00:20]} 77. Ra4+ {[%clk 0:00:07]}  Kf3 {[%clk 0:00:19]} 78. Rf4+ {[%clk 0:00:07]}  Ke3 {[%clk 0:00:17]} 79. Rxf5 {[%clk 0:00:07]}  Ke4 {[%clk 0:00:17]} 80. Rf1 {[%clk 0:00:06]}  Rg8 {[%clk 0:00:17]} 81. g4 {[%clk 0:00:07]}  Ke5 {[%clk 0:00:17]} 82. g5 {[%clk 0:00:07]}  Ke6 {[%clk 0:00:17]} 83. Kh5 {[%clk 0:00:07]}  Rh8+ {[%clk 0:00:17]} 84. Kg6 {[%clk 0:00:07]}  Ke7 {[%clk 0:00:17]} 85. Kg7 {[%clk 0:00:07]}  Rh2 {[%clk 0:00:18]} 86. Re1+ {[%clk 0:00:07]}  Kd7 {[%clk 0:00:17]} 87. g6 {[%clk 0:00:08]}  Rf2 {[%clk 0:00:16]} 88. Kg8 {[%clk 0:00:09]}  Rg2 {[%clk 0:00:16]} 89. g7 {[%clk 0:00:09]}  Rg3 {[%clk 0:00:14]} 90. Rh1 {[%clk 0:00:09]}  Ke7 {[%clk 0:00:10]} 91. Kh7 {[%clk 0:00:10]} 1-0


[Site "https://www.chess.com"]

[Event "Titled Tuesday Blitz November 08 Early 2022"]
[White "Reprintsev, Alexander"]
[Black "Principe, Gerson"]
[WhiteFideId "14100541"]
[BlackFideId "3804550"]
[WhiteElo "2230"]
[BlackElo "2280"]
[Result "1/2-1/2"]
[Round "04"]
[TimeControl "180+1"]
[Date "2022.11.09"]
[WhiteClock "0:01:48"]
[BlackClock "0:00:53"]

1. e4 {[%clk 0:03:00]}  c5 {[%clk 0:02:57]} 2. b3 {[%clk 0:02:46]}  e6 {[%clk 0:02:48]} 3. Qe2 {[%clk 0:02:45]}  Nc6 {[%clk 0:02:45]} 4. Bb2 {[%clk 0:02:44]}  d5 {[%clk 0:02:43]} 5. exd5 {[%clk 0:02:44]}  Qxd5 {[%clk 0:02:43]} 6. Nc3 {[%clk 0:02:44]}  Qd8 {[%clk 0:02:41]} 7. O-O-O {[%clk 0:02:43]}  Nf6 {[%clk 0:02:40]} 8. Nf3 {[%clk 0:02:43]}  Be7 {[%clk 0:02:40]} 9. g4 {[%clk 0:02:43]}  O-O {[%clk 0:02:37]} 10. g5 {[%clk 0:02:41]}  Nd5 {[%clk 0:02:37]} 11. h4 {[%clk 0:02:40]}  Nd4 {[%clk 0:02:24]} 12. Nxd4 {[%clk 0:02:36]}  cxd4 {[%clk 0:02:23]} 13. Nxd5 {[%clk 0:02:34]}  Qxd5 {[%clk 0:02:21]} 14. Rg1 {[%clk 0:02:24]}  a5 {[%clk 0:02:10]} 15. Bg2 {[%clk 0:02:23]}  Qd8 {[%clk 0:02:00]} 16. a4 {[%clk 0:02:20]}  d3 {[%clk 0:01:52]} 17. Qxd3 {[%clk 0:02:19]}  Qxd3 {[%clk 0:01:52]} 18. cxd3 {[%clk 0:02:20]}  Rd8 {[%clk 0:01:50]} 19. Kc2 {[%clk 0:02:18]}  Ra6 {[%clk 0:01:48]} 20. Bc3 {[%clk 0:02:17]}  Bc5 {[%clk 0:01:27]} 21. Rgf1 {[%clk 0:02:13]}  b6 {[%clk 0:01:17]} 22. f4 {[%clk 0:02:10]}  Ra7 {[%clk 0:01:17]} 23. Rde1 {[%clk 0:02:08]}  Ba6 {[%clk 0:01:17]} 24. Be4 {[%clk 0:02:05]}  Rad7 {[%clk 0:01:17]} 25. Rf3 {[%clk 0:02:04]}  Bd4 {[%clk 0:01:05]} 26. h5 {[%clk 0:01:52]}  Rc7 {[%clk 0:01:00]} 27. Kb2 {[%clk 0:01:49]}  Rcd7 {[%clk 0:00:59]} 28. Kc2 {[%clk 0:01:48]}  Rc7 {[%clk 0:00:53]} 29. Kb2 {[%clk 0:01:49]}  Rcd7 {[%clk 0:00:53]} 30. Kc2 {[%clk 0:01:48]} 1/2-1/2


[Site "https://www.chess.com"]

[Event "Titled Tuesday Blitz November 08 Early 2022"]
[White "Rosenberg, Evan S"]
[Black "Volkov, Maksim"]
[WhiteFideId "2019299"]
[BlackFideId "54123070"]
[WhiteElo "2377"]
[BlackElo "2257"]
[Result "0-1"]
[Round "04"]
[TimeControl "180+1"]
[Date "2022.11.09"]
[WhiteClock "0:00:05"]
[BlackClock "0:00:11"]

1. d4 {[%clk 0:03:00]}  d5 {[%clk 0:02:59]} 2. Nf3 {[%clk 0:02:59]}  Nf6 {[%clk 0:02:57]} 3. c3 {[%clk 0:02:59]}  c5 {[%clk 0:02:56]} 4. dxc5 {[%clk 0:02:58]}  e6 {[%clk 0:02:54]} 5. Be3 {[%clk 0:02:58]}  a5 {[%clk 0:02:45]} 6. c4 {[%clk 0:02:57]}  Qc7 {[%clk 0:02:42]} 7. Nc3 {[%clk 0:02:29]}  Bxc5 {[%clk 0:02:38]} 8. Bxc5 {[%clk 0:02:29]}  Qxc5 {[%clk 0:02:38]} 9. cxd5 {[%clk 0:02:30]}  exd5 {[%clk 0:02:36]} 10. Rc1 {[%clk 0:02:27]}  O-O {[%clk 0:02:34]} 11. e3 {[%clk 0:02:16]}  Nc6 {[%clk 0:02:33]} 12. a3 {[%clk 0:02:13]}  Bg4 {[%clk 0:02:25]} 13. Be2 {[%clk 0:02:12]}  Rad8 {[%clk 0:02:18]} 14. O-O {[%clk 0:02:08]}  Qe7 {[%clk 0:02:12]} 15. Nd4 {[%clk 0:01:59]}  Bxe2 {[%clk 0:02:09]} 16. Ncxe2 {[%clk 0:01:59]}  Ne5 {[%clk 0:02:08]} 17. Nf4 {[%clk 0:01:56]}  Ne4 {[%clk 0:01:38]} 18. f3 {[%clk 0:01:46]}  Nf6 {[%clk 0:01:31]} 19. Re1 {[%clk 0:01:44]}  Rfe8 {[%clk 0:01:31]} 20. Qb3 {[%clk 0:01:18]}  g5 {[%clk 0:01:13]} 21. Nd3 {[%clk 0:01:02]}  Nc4 {[%clk 0:01:13]} 22. Nf5 {[%clk 0:00:50]}  Qd7 {[%clk 0:01:06]} 23. g4 {[%clk 0:00:43]}  b6 {[%clk 0:00:58]} 24. Nf2 {[%clk 0:00:30]}  Ne5 {[%clk 0:00:45]} 25. Qd1 {[%clk 0:00:22]}  h5 {[%clk 0:00:41]} 26. h3 {[%clk 0:00:18]}  Qb7 {[%clk 0:00:36]} 27. Kg2 {[%clk 0:00:17]}  Re6 {[%clk 0:00:27]} 28. Qd4 {[%clk 0:00:17]}  Nc6 {[%clk 0:00:24]} 29. Rxc6 {[%clk 0:00:15]}  Qxc6 {[%clk 0:00:22]} 30. Nd3 {[%clk 0:00:15]}  Qc4 {[%clk 0:00:20]} 31. Rc1 {[%clk 0:00:08]}  Qxd4 {[%clk 0:00:19]} 32. exd4 {[%clk 0:00:09]}  hxg4 {[%clk 0:00:19]} 33. hxg4 {[%clk 0:00:09]}  Re2+ {[%clk 0:00:18]} 34. Kg3 {[%clk 0:00:09]}  Ne8 {[%clk 0:00:17]} 35. Rh1 {[%clk 0:00:08]}  Ng7 {[%clk 0:00:16]} 36. Nh6+ {[%clk 0:00:07]}  Kf8 {[%clk 0:00:17]} 37. Ne5 {[%clk 0:00:08]}  Ke7 {[%clk 0:00:12]} 38. Nhxf7 {[%clk 0:00:08]}  Rf8 {[%clk 0:00:12]} 39. Nxg5 {[%clk 0:00:07]}  Rxb2 {[%clk 0:00:10]} 40. Rh7 {[%clk 0:00:07]}  Rg8 {[%clk 0:00:11]} 41. Ng6+ {[%clk 0:00:05]}  Kf6 {[%clk 0:00:11]} 0-1


[Site "https://www.chess.com"]

[Event "Titled Tuesday Blitz November 08 Early 2022"]
[White "Roux, Baptiste"]
[Black "Sala, Giulia"]
[WhiteFideId "36017450"]
[BlackFideId "2840451"]
[WhiteElo "2077"]
[BlackElo "1769"]
[Result "1/2-1/2"]
[Round "04"]
[TimeControl "180+1"]
[Date "2022.11.09"]
[WhiteClock "0:00:12"]
[BlackClock "0:01:08"]

1. Nf3 {[%clk 0:03:00]}  e6 {[%clk 0:02:54]} 2. d4 {[%clk 0:02:54]}  d6 {[%clk 0:02:53]} 3. e4 {[%clk 0:02:53]}  c6 {[%clk 0:02:52]} 4. Bd3 {[%clk 0:02:50]}  Nd7 {[%clk 0:02:46]} 5. O-O {[%clk 0:02:49]}  Ne7 {[%clk 0:02:45]} 6. c3 {[%clk 0:02:49]}  g6 {[%clk 0:02:44]} 7. Re1 {[%clk 0:02:46]}  Bg7 {[%clk 0:02:44]} 8. Bg5 {[%clk 0:02:43]}  O-O {[%clk 0:02:44]} 9. Qd2 {[%clk 0:02:43]}  f6 {[%clk 0:02:43]} 10. Bh6 {[%clk 0:02:42]}  d5 {[%clk 0:02:42]} 11. exd5 {[%clk 0:02:38]}  exd5 {[%clk 0:02:41]} 12. Bxg7 {[%clk 0:02:33]}  Kxg7 {[%clk 0:02:39]} 13. Qf4 {[%clk 0:02:31]}  Rf7 {[%clk 0:02:37]} 14. Nbd2 {[%clk 0:02:29]}  Nf8 {[%clk 0:02:37]} 15. Re2 {[%clk 0:02:19]}  Bf5 {[%clk 0:02:34]} 16. Bxf5 {[%clk 0:02:09]}  Nxf5 {[%clk 0:02:35]} 17. Rae1 {[%clk 0:02:08]}  Qd6 {[%clk 0:02:32]} 18. Qxd6 {[%clk 0:01:57]}  Nxd6 {[%clk 0:02:33]} 19. Re7 {[%clk 0:01:56]}  Nd7 {[%clk 0:02:21]} 20. b3 {[%clk 0:01:45]}  Kf8 {[%clk 0:02:17]} 21. Rxf7+ {[%clk 0:01:40]}  Kxf7 {[%clk 0:02:15]} 22. Kf1 {[%clk 0:01:41]}  Re8 {[%clk 0:02:15]} 23. Rxe8 {[%clk 0:01:42]}  Kxe8 {[%clk 0:02:16]} 24. Ke2 {[%clk 0:01:42]}  Ke7 {[%clk 0:02:16]} 25. Kd3 {[%clk 0:01:42]}  Nf5 {[%clk 0:02:13]} 26. c4 {[%clk 0:01:41]}  Kd6 {[%clk 0:02:12]} 27. h3 {[%clk 0:01:36]}  b6 {[%clk 0:02:06]} 28. g3 {[%clk 0:01:35]}  Ke6 {[%clk 0:02:06]} 29. Ne1 {[%clk 0:01:33]}  Nd6 {[%clk 0:02:05]} 30. Ng2 {[%clk 0:01:32]}  g5 {[%clk 0:02:04]} 31. h4 {[%clk 0:01:32]}  c5 {[%clk 0:02:03]} 32. hxg5 {[%clk 0:01:18]}  fxg5 {[%clk 0:02:02]} 33. Nf3 {[%clk 0:01:18]}  h6 {[%clk 0:02:00]} 34. Ne3 {[%clk 0:01:15]}  dxc4+ {[%clk 0:01:56]} 35. bxc4 {[%clk 0:01:12]}  cxd4 {[%clk 0:01:50]} 36. Nxd4+ {[%clk 0:01:12]}  Kf6 {[%clk 0:01:50]} 37. Nd5+ {[%clk 0:01:08]}  Ke5 {[%clk 0:01:46]} 38. Nc6+ {[%clk 0:01:08]}  Kf5 {[%clk 0:01:42]} 39. Ne3+ {[%clk 0:01:07]}  Ke6 {[%clk 0:01:38]} 40. Nxa7 {[%clk 0:01:04]}  Nc5+ {[%clk 0:01:38]} 41. Kd4 {[%clk 0:01:01]}  h5 {[%clk 0:01:37]} 42. Nb5 {[%clk 0:00:53]}  Nf5+ {[%clk 0:01:37]} 43. Nxf5 {[%clk 0:00:52]}  Kxf5 {[%clk 0:01:38]} 44. Ke3 {[%clk 0:00:46]}  h4 {[%clk 0:01:36]} 45. gxh4 {[%clk 0:00:44]}  gxh4 {[%clk 0:01:37]} 46. Kf3 {[%clk 0:00:44]}  Nd3 {[%clk 0:01:32]} 47. Nd6+ {[%clk 0:00:34]}  Ke6 {[%clk 0:01:31]} 48. Nc8 {[%clk 0:00:28]}  Ne5+ {[%clk 0:01:30]} 49. Kg2 {[%clk 0:00:26]}  Nxc4 {[%clk 0:01:28]} 50. Kh3 {[%clk 0:00:27]}  b5 {[%clk 0:01:26]} 51. Kxh4 {[%clk 0:00:25]}  Ke5 {[%clk 0:01:26]} 52. Na7 {[%clk 0:00:24]}  Nd6 {[%clk 0:01:19]} 53. Kg4 {[%clk 0:00:21]}  Kf6 {[%clk 0:01:19]} 54. f4 {[%clk 0:00:20]}  Kg6 {[%clk 0:01:18]} 55. a3 {[%clk 0:00:19]}  Kf6 {[%clk 0:01:17]} 56. Nc6 {[%clk 0:00:18]}  Nc4 {[%clk 0:01:16]} 57. Nb4 {[%clk 0:00:12]}  Nxa3 {[%clk 0:01:16]} 58. f5 {[%clk 0:00:13]}  Nc4 {[%clk 0:01:14]} 59. Kf4 {[%clk 0:00:13]}  Nd6 {[%clk 0:01:13]} 60. Nd5+ {[%clk 0:00:13]}  Kf7 {[%clk 0:01:13]} 61. Ke5 {[%clk 0:00:14]}  Nc4+ {[%clk 0:01:11]} 62. Kd4 {[%clk 0:00:12]}  Nd6 {[%clk 0:01:10]} 63. Kc5 {[%clk 0:00:11]}  Nxf5 {[%clk 0:01:08]} 64. Kxb5 {[%clk 0:00:12]} 1/2-1/2


[Site "https://www.chess.com"]

[Event "Titled Tuesday Blitz November 08 Early 2022"]
[White "Safin, Robert"]
[Black "Mills, Morgen"]
[WhiteFideId "34189120"]
[BlackFideId "2013304"]
[WhiteElo "2253"]
[BlackElo "2281"]
[Result "1-0"]
[Round "04"]
[TimeControl "180+1"]
[Date "2022.11.09"]
[WhiteClock "0:01:23"]
[BlackClock "0:00:07"]

1. d4 {[%clk 0:02:56]}  d5 {[%clk 0:02:58]} 2. c4 {[%clk 0:02:56]}  e6 {[%clk 0:02:58]} 3. Nf3 {[%clk 0:02:57]}  a6 {[%clk 0:02:59]} 4. g3 {[%clk 0:02:57]}  dxc4 {[%clk 0:02:59]} 5. Bg2 {[%clk 0:02:58]}  b5 {[%clk 0:02:59]} 6. O-O {[%clk 0:02:59]}  Bb7 {[%clk 0:02:57]} 7. a4 {[%clk 0:02:59]}  Nd7 {[%clk 0:02:55]} 8. Qc2 {[%clk 0:02:57]}  Ngf6 {[%clk 0:02:54]} 9. Rd1 {[%clk 0:02:58]}  Be7 {[%clk 0:02:44]} 10. b3 {[%clk 0:02:20]}  Be4 {[%clk 0:02:33]} 11. Qb2 {[%clk 0:02:14]}  cxb3 {[%clk 0:02:32]} 12. Qxb3 {[%clk 0:02:13]}  Bd5 {[%clk 0:02:30]} 13. Qc2 {[%clk 0:02:11]}  b4 {[%clk 0:02:27]} 14. Nbd2 {[%clk 0:02:11]}  Rb8 {[%clk 0:02:13]} 15. Bb2 {[%clk 0:02:02]}  b3 {[%clk 0:02:04]} 16. Qd3 {[%clk 0:02:02]}  c5 {[%clk 0:01:49]} 17. e4 {[%clk 0:02:00]}  c4 {[%clk 0:01:46]} 18. Qe2 {[%clk 0:01:59]}  Ba8 {[%clk 0:01:34]} 19. e5 {[%clk 0:01:59]}  Nd5 {[%clk 0:01:19]} 20. Qxc4 {[%clk 0:01:56]}  O-O {[%clk 0:01:19]} 21. Nxb3 {[%clk 0:01:46]}  N7b6 {[%clk 0:01:20]} 22. Qxa6 {[%clk 0:01:44]}  Nb4 {[%clk 0:01:12]} 23. Qe2 {[%clk 0:01:42]}  Bd5 {[%clk 0:01:10]} 24. Nc5 {[%clk 0:01:42]}  Bc4 {[%clk 0:01:01]} 25. Qd2 {[%clk 0:01:42]}  N6d5 {[%clk 0:01:01]} 26. Ba3 {[%clk 0:01:41]}  Bxc5 {[%clk 0:00:55]} 27. dxc5 {[%clk 0:01:38]}  Nc6 {[%clk 0:00:56]} 28. Nd4 {[%clk 0:01:37]}  Qc7 {[%clk 0:00:42]} 29. Nb5 {[%clk 0:01:25]}  Bxb5 {[%clk 0:00:39]} 30. axb5 {[%clk 0:01:26]}  Rxb5 {[%clk 0:00:39]} 31. Bxd5 {[%clk 0:01:27]}  Rd8 {[%clk 0:00:37]} 32. Bxc6 {[%clk 0:01:27]}  Rxd2 {[%clk 0:00:34]} 33. Rxd2 {[%clk 0:01:28]}  Rb8 {[%clk 0:00:31]} 34. Be4 {[%clk 0:01:26]}  Qxe5 {[%clk 0:00:31]} 35. Rad1 {[%clk 0:01:24]}  f5 {[%clk 0:00:18]} 36. c6 {[%clk 0:01:24]}  fxe4 {[%clk 0:00:07]} 37. Bd6 {[%clk 0:01:24]}  Qb5 {[%clk 0:00:05]} 38. Bxb8 {[%clk 0:01:23]}  Qxb8 {[%clk 0:00:06]} 39. Rd8+ {[%clk 0:01:22]}  Qxd8 {[%clk 0:00:07]} 40. Rxd8+ {[%clk 0:01:23]} 1-0


[Site "https://www.chess.com"]

[Event "Titled Tuesday Blitz November 08 Early 2022"]
[White "Salinas Herrera, Pablo"]
[Black "Paravyan, David"]
[WhiteFideId "3407128"]
[BlackFideId "4194985"]
[WhiteElo "2557"]
[BlackElo "2546"]
[Result "1/2-1/2"]
[Round "04"]
[TimeControl "180+1"]
[Date "2022.11.08"]
[WhiteClock "0:00:09"]
[BlackClock "0:00:16"]

1. d4 {[%clk 0:03:00]}  Nf6 {[%clk 0:02:59]} 2. c4 {[%clk 0:03:00]}  g6 {[%clk 0:03:00]} 3. Nc3 {[%clk 0:03:00]}  d5 {[%clk 0:03:00]} 4. cxd5 {[%clk 0:03:00]}  Nxd5 {[%clk 0:03:01]} 5. Bd2 {[%clk 0:03:00]}  Bg7 {[%clk 0:03:01]} 6. e3 {[%clk 0:03:00]}  O-O {[%clk 0:02:57]} 7. Rc1 {[%clk 0:03:00]}  Nxc3 {[%clk 0:02:55]} 8. Bxc3 {[%clk 0:03:00]}  Be6 {[%clk 0:02:56]} 9. a3 {[%clk 0:03:00]}  Bd5 {[%clk 0:02:35]} 10. Nf3 {[%clk 0:03:00]}  Nd7 {[%clk 0:02:29]} 11. Bd3 {[%clk 0:02:59]}  e5 {[%clk 0:02:25]} 12. dxe5 {[%clk 0:02:26]}  Bxf3 {[%clk 0:02:24]} 13. Qxf3 {[%clk 0:02:27]}  Nxe5 {[%clk 0:02:21]} 14. Bxe5 {[%clk 0:02:27]}  Bxe5 {[%clk 0:02:22]} 15. Rd1 {[%clk 0:02:27]}  Qe7 {[%clk 0:02:16]} 16. Qxb7 {[%clk 0:01:46]}  Rab8 {[%clk 0:02:12]} 17. Qxa7 {[%clk 0:01:43]}  Bxb2 {[%clk 0:02:00]} 18. O-O {[%clk 0:01:42]}  Bxa3 {[%clk 0:01:59]} 19. Bc4 {[%clk 0:01:35]}  Bc5 {[%clk 0:01:53]} 20. Qa2 {[%clk 0:01:32]}  Bd6 {[%clk 0:01:49]} 21. g3 {[%clk 0:01:32]}  Kg7 {[%clk 0:01:44]} 22. Rd4 {[%clk 0:01:29]}  Rb4 {[%clk 0:01:32]} 23. Rfd1 {[%clk 0:01:20]}  Rfb8 {[%clk 0:01:28]} 24. Qe2 {[%clk 0:01:14]}  Rb2 {[%clk 0:01:20]} 25. R4d2 {[%clk 0:01:14]}  Qf6 {[%clk 0:01:18]} 26. Bd5 {[%clk 0:01:10]}  h5 {[%clk 0:01:13]} 27. h4 {[%clk 0:01:09]}  Be5 {[%clk 0:01:01]} 28. Kg2 {[%clk 0:01:03]}  Rxd2 {[%clk 0:01:01]} 29. Rxd2 {[%clk 0:01:03]}  Rb2 {[%clk 0:01:01]} 30. Rxb2 {[%clk 0:00:57]}  Bxb2 {[%clk 0:01:02]} 31. Qc4 {[%clk 0:00:56]}  Be5 {[%clk 0:00:55]} 32. f4 {[%clk 0:00:55]}  Bd6 {[%clk 0:00:55]} 33. e4 {[%clk 0:00:56]}  Qb2+ {[%clk 0:00:55]} 34. Kh3 {[%clk 0:00:56]}  Qb1 {[%clk 0:00:18]} 35. e5 {[%clk 0:00:54]}  Be7 {[%clk 0:00:17]} 36. Qxc7 {[%clk 0:00:48]}  Qf5+ {[%clk 0:00:12]} 37. Kh2 {[%clk 0:00:48]}  Qd3 {[%clk 0:00:10]} 38. Qb7 {[%clk 0:00:26]}  Qd2+ {[%clk 0:00:09]} 39. Kh3 {[%clk 0:00:26]}  Qb4 {[%clk 0:00:08]} 40. Qd7 {[%clk 0:00:19]}  Qc5 {[%clk 0:00:08]} 41. Qb7 {[%clk 0:00:16]}  Kf8 {[%clk 0:00:07]} 42. Qa8+ {[%clk 0:00:16]}  Kg7 {[%clk 0:00:08]} 43. Qa2 {[%clk 0:00:16]}  Qg1 {[%clk 0:00:06]} 44. Qe2 {[%clk 0:00:13]}  Qc5 {[%clk 0:00:06]} 45. Bf3 {[%clk 0:00:13]}  Qc8+ {[%clk 0:00:05]} 46. Kg2 {[%clk 0:00:13]}  Qc3 {[%clk 0:00:06]} 47. Qa2 {[%clk 0:00:12]}  Bc5 {[%clk 0:00:05]} 48. Bd5 {[%clk 0:00:11]}  Qe3 {[%clk 0:00:06]} 49. Kh3 {[%clk 0:00:06]}  Qe1 {[%clk 0:00:06]} 50. Qg2 {[%clk 0:00:05]}  Qf2 {[%clk 0:00:05]} 51. Qxf2 {[%clk 0:00:03]}  Bxf2 {[%clk 0:00:06]} 52. Kg2 {[%clk 0:00:04]}  Bc5 {[%clk 0:00:07]} 53. Kf3 {[%clk 0:00:05]}  Bb4 {[%clk 0:00:07]} 54. g4 {[%clk 0:00:05]}  hxg4+ {[%clk 0:00:08]} 55. Kxg4 {[%clk 0:00:05]}  f6 {[%clk 0:00:08]} 56. e6 {[%clk 0:00:04]}  f5+ {[%clk 0:00:08]} 57. Kf3 {[%clk 0:00:04]}  Kf6 {[%clk 0:00:08]} 58. Bc4 {[%clk 0:00:04]}  Be1 {[%clk 0:00:09]} 59. Kg2 {[%clk 0:00:01]}  Bxh4 {[%clk 0:00:09]} 60. Kf3 {[%clk 0:00:02]}  Be1 {[%clk 0:00:09]} 61. Kg2 {[%clk 0:00:02]}  Bb4 {[%clk 0:00:10]} 62. Kf3 {[%clk 0:00:03]}  Bd6 {[%clk 0:00:10]} 63. Bb3 {[%clk 0:00:04]}  Bc5 {[%clk 0:00:11]} 64. Bc4 {[%clk 0:00:04]}  Ke7 {[%clk 0:00:11]} 65. Bb3 {[%clk 0:00:05]}  Bb4 {[%clk 0:00:12]} 66. Bc4 {[%clk 0:00:06]}  Bd2 {[%clk 0:00:13]} 67. Bb3 {[%clk 0:00:06]}  Ba5 {[%clk 0:00:13]} 68. Bc4 {[%clk 0:00:06]}  Bc7 {[%clk 0:00:14]} 69. Bb3 {[%clk 0:00:07]}  Bd8 {[%clk 0:00:14]} 70. Ba2 {[%clk 0:00:07]}  Kd6 {[%clk 0:00:15]} 71. Bb3 {[%clk 0:00:07]}  Be7 {[%clk 0:00:15]} 72. Ba2 {[%clk 0:00:07]}  Kc5 {[%clk 0:00:16]} 73. Bb3 {[%clk 0:00:08]}  g5 {[%clk 0:00:16]} 74. fxg5 {[%clk 0:00:08]}  Bxg5 {[%clk 0:00:17]} 75. Bc2 {[%clk 0:00:08]}  f4 {[%clk 0:00:18]} 76. e7 {[%clk 0:00:09]}  Bxe7 {[%clk 0:00:16]} 77. Kxf4 {[%clk 0:00:09]} 1/2-1/2


[Site "https://www.chess.com"]